Workbook

Sheet Aktiviti Jualan Mingguan
B2: AKTIVITI JUALAN MINGGUAN | I2: JURUJUAL | J2: Anav Silverman | L2: MINGGU TAMAT PADA | M2: 2012-10-19
I3: LOKASI | J3: Redmond, WA - Region 12 | L3: TARIKH HARI INI | M3: =TODAY() -> 2012-11-28
B5: HARI | C5: DALAM PEJABAT JUALAN | D5: DI LUAR PEJABAT | E5: DALAM LAWATAN PEJABAT | F5: PANGGILAN LUAR | G5: PANGGILAN TELEFON FAIL | H5: TELEFON AKAUN BARU | I5: BILIK TAMU | J5: MAKANAN & MINUMAN | K5: SEWAAN BILIK MESYUARAT | L5: LAIN* | M5: JUMLAH
B6: Isnin | C6: RM14.00 | D6: RM23.00 | E6: RM4.00 | F6: RM45.00 | G6: RM22.00 | H6: RM2.00 | I6: RM100.00 | J6: RM0.00 | K6: RM0.00 | L6: RM0.00 | M6: =SUM(Activity[[#This Row],[DALAM PEJABAT JUALAN]:[LAIN*]]) -> RM210.00
B7: Selasa | C7: RM23.00 | D7: RM76.00 | E7: RM10.00 | F7: RM50.00 | G7: RM54.00 | H7: RM45.00 | I7: RM80.00 | J7: RM0.00 | K7: RM0.00 | L7: RM0.00 | M7: =SUM(Activity[[#This Row],[DALAM PEJABAT JUALAN]:[LAIN*]]) -> RM338.00
B8: Rabu | C8: RM4.00 | D8: RM130.00 | E8: RM11.00 | F8: RM33.00 | G8: RM67.00 | H8: RM65.00 | I8: RM400.00 | J8: RM0.00 | K8: RM0.00 | L8: RM0.00 | M8: =SUM(Activity[[#This Row],[DALAM PEJABAT JUALAN]:[LAIN*]]) -> RM710.00
B9: Khamis | C9: RM102.00 | D9: RM40.00 | E9: RM18.00 | F9: RM0.00 | G9: RM86.00 | H9: RM82.00 | I9: RM97.00 | J9: RM0.00 | K9: RM0.00 | L9: RM0.00 | M9: =SUM(Activity[[#This Row],[DALAM PEJABAT JUALAN]:[LAIN*]]) -> RM425.00
B10: Jumaat | C10: RM33.00 | D10: RM55.00 | E10: RM22.00 | F10: RM49.00 | G10: RM143.00 | H10: RM26.00 | I10: RM50.00 | J10: RM0.00 | K10: RM0.00 | L10: RM0.00 | M10: =SUM(Activity[[#This Row],[DALAM PEJABAT JUALAN]:[LAIN*]]) -> RM378.00
B11: Sabtu | C11: RM0.00 | D11: RM0.00 | E11: RM0.00 | F11: RM0.00 | G11: RM0.00 | H11: RM0.00 | I11: RM0.00 | J11: RM0.00 | K11: RM0.00 | L11: RM0.00 | M11: =SUM(Activity[[#This Row],[DALAM PEJABAT JUALAN]:[LAIN*]]) -> RM0.00
B12: Ahad | C12: RM0.00 | D12: RM0.00 | E12: RM0.00 | F12: RM0.00 | G12: RM0.00 | H12: RM0.00 | I12: RM0.00 | J12: RM0.00 | K12: RM0.00 | L12: RM0.00 | M12: =SUM(Activity[[#This Row],[DALAM PEJABAT JUALAN]:[LAIN*]]) -> RM0.00
B13: Jumlah | C13: =SUBTOTAL(109,Activity[DALAM PEJABAT JUALAN]) -> RM176.00 | D13: =SUBTOTAL(109,Activity[DI LUAR PEJABAT]) -> RM324.00 | E13: =SUBTOTAL(109,Activity[DALAM LAWATAN PEJABAT]) -> RM65.00 | F13: =SUBTOTAL(109,Activity[PANGGILAN LUAR]) -> RM177.00 | G13: =SUBTOTAL(109,Activity[PANGGILAN TELEFON FAIL]) -> RM372.00 | H13: =SUBTOTAL(109,Activity[TELEFON AKAUN BARU]) -> RM220.00 | I13: =SUBTOTAL(105,Activity[BILIK TAMU]) -> RM0.00 | J13: =SUBTOTAL(109,Activity[MAKANAN & MINUMAN]) -> RM0.00 | K13: =SUBTOTAL(109,Activity[SEWAAN BILIK MESYUARAT]) -> RM0.00 | L13: =SUBTOTAL(109,Activity[LAIN*]) -> RM0.00 | M13: =SUBTOTAL(109,Activity[JUMLAH]) -> RM2,061.00
B15: SASARAN | C15: RM200.00 | D15: RM400.00 | E15: RM300.00 | F15: RM65.00 | G15: RM500.00 | H15: RM300.00 | I15: RM400.00 | J15: RM600.00 | K15: RM300.00 | L15: RM300.00 | M15: =SUM(C15:L15) -> RM3,365.00
B16: VARIANS | C16: =SUM(Activity[[#Totals],[DALAM PEJABAT JUALAN]]-C15) -> -RM24.00 | D16: =SUM(Activity[[#Totals],[DI LUAR PEJABAT]]-D15) -> -RM76.00 | E16: =SUM(Activity[[#Totals],[DALAM LAWATAN PEJABAT]]-E15) -> -RM235.00 | F16: =SUM(Activity[[#Totals],[DALAM LAWATAN PEJABAT]]-F15) -> RM0.00 | G16: =SUM(Activity[[#Totals],[PANGGILAN TELEFON FAIL]]-G15) -> -RM128.00 | H16: =SUM(Activity[[#Totals],[TELEFON AKAUN BARU]]-H15) -> -RM80.00 | I16: =SUM(Activity[[#Totals],[BILIK TAMU]]-I15) -> -RM400.00 | J16: =SUM(Activity[[#Totals],[MAKANAN & MINUMAN]]-J15) -> -RM600.00 | K16: =SUM(Activity[[#Totals],[SEWAAN BILIK MESYUARAT]]-K15) -> -RM300.00 | L16: =SUM(Activity[[#Totals],[LAIN*]]-L15) -> -RM300.00 | M16: =SUM(C16:L16) -> -RM2,143.00
B19: *PENJELASAN
B21: Kelulusan
